bitfinex/quotes_ETHUSD_20220309
["timestamp","ask_amount","ask_price","bid_price","bid_amount"]
[1646859372953,6.4309294,2687.9,2687.6,1.54543005]
[1646859373153,0.93112,2687.7,2687.5,0.02066356]
[1646859373355,3.7244764,2687.7,2687.5,0.02066356]
[1646859373554,4.0244764,2687.7,2687.5,0.02066356]
[1646859373757,5.0244764,2687.7,2687.5,0.02066356]
[1646859374159,5.9555864,2687.7,2687.5,0.02066356]
[1646859374559,5.9555864,2687.7,2687.1,0.04098108]
[1646859374757,5.5,2687.6,2687.1,0.04098108]
[1646859374957,0.3,2687.6,2687.1,0.04098108]
[1646859375159,0.93113,2687.5,2687.1,0.04098108]
[1646859375858,1.23108,2687.4,2687.2,0.00327654]
[1646859376706,1.23108,2687.4,2687.1,0.04098108]
[1646859376908,1.23108,2687.4,2687.2,0.00327654]
[1646859378010,1.23108,2687.4,2686.9,0.0021336]
[1646859378011,9.52479,2687.4,2686.9,0.0021336]
[1646859378211,9.52479,2687.4,2687.2,0.00327654]
[1646859378212,7.41000921,2687.3,2687.2,0.00327654]
[1646859378411,6.4314,2687.2,2686.9,0.04063872]
[1646859378611,6.4314,2687.2,2686.8,0.01310814]
[1646859378612,5.5,2687.0,2686.8,0.01310814]
[1646859378812,4.5,2686.9,2686.3,0.069596]
[1646859379113,0.04253489,2686.8,2686.3,0.069596]
[1646859379511,2.83691489,2686.8,2686.3,0.069596]
[1646859379954,3.79438,2686.8,2686.3,0.069596]
[1646859380553,3.79438,2686.8,2686.4,0.00290312]
[1646859380954,4.72577,2686.8,2686.4,0.00290312]
[1646859381155,1.8627287,2686.7,2686.4,0.00290312]
[1646859381354,3.0940887,2686.7,2686.4,0.00290312]
[1646859381554,3.0940887,2686.7,2686.3,0.069596]
[1646859381758,1.86272,2686.7,2686.4,0.00290312]
[1646859382858,1.86272,2686.7,2686.3,0.069596]
[1646859383057,1.86272,2686.7,2686.4,0.00290312]
[1646859384005,1.86272,2686.7,2686.3,0.069596]
[1646859384203,1.86272,2686.7,2686.4,0.0027042]
[1646859384805,2.7940626,2686.7,2686.4,0.0027042]
[1646859385108,2.7940626,2686.7,2686.3,0.069596]
[1646859385504,2.7940626,2686.7,2686.4,0.0027042]
[1646859385706,3.7940626,2686.7,2686.4,0.0027042]
[1646859385906,1.86272,2686.7,2686.4,0.0027042]
[1646859386105,1.93136,2686.7,2686.4,0.0027042]
[1646859386304,0.93136,2686.7,2686.3,0.069596]
[1646859386806,0.93136,2686.7,2686.4,0.0027042]
[1646859387364,6.5940588,2686.7,2686.4,0.0027042]
[1646859387552,0.016589,2686.5,2685.8,0.09123394]
[1646859387754,5.5,2686.6,2685.8,0.09123394]
[1646859387755,0.93159,2686.3,2685.8,0.09027394]
[1646859387952,1.23159,2686.3,2686.0,0.01082425]
[1646859388149,1.53159,2686.3,2686.0,0.01082425]
[1646859388755,1.53159,2686.3,2685.6,0.0100559]
[1646859388756,0.9316177,2686.1,2685.6,0.08816529]
[1646859388955,0.93162,2686.0,2685.6,0.08816529]
[1646859389356,0.93162,2686.0,2685.6,0.0100559]
[1646859391415,0.93162,2686.0,2685.7,0.0032201]
[1646859392116,1.23162,2686.0,2685.7,0.0032201]
[1646859392320,1.23162,2686.0,2685.6,0.0100559]
[1646859393218,0.56614416,2686.1,2685.7,1.54611358]
[1646859393418,0.56614416,2686.1,2685.6,0.0100559]
[1646859393616,0.56614416,2686.1,2685.8,0.08509678]
[1646859393819,0.56614416,2686.1,2685.6,0.0100559]
[1646859394018,0.56614416,2686.1,2685.7,1.54612476]
[1646859394220,0.56614416,2686.1,2685.8,0.08158795]
[1646859394419,0.56614416,2686.1,2685.6,0.0100559]
[1646859394619,0.56614416,2686.1,2685.7,1.54611103]
[1646859394863,0.56614416,2686.1,2685.8,0.03175564]
[1646859395054,0.56614416,2686.1,2685.6,0.0100559]
[1646859395253,0.56614416,2686.1,2686.0,1.1320902]
[1646859395458,0.56614416,2686.1,2686.0,1.20879359]
[1646859395653,0.56614416,2686.1,2686.0,1.1320902]
[1646859395856,0.56614416,2686.1,2686.0,2.75388233]
[1646859396354,0.93119,2686.9,2686.2,0.08706877]
[1646859396553,4.69445343,2687.2,2686.3,1.62368427]
[1646859396554,5.62550343,2687.2,2686.3,1.62368427]
[1646859396755,2.79730343,2687.2,2686.4,1.62751831]
[1646859396955,0.00399343,2687.2,2686.5,5.13465286]
[1646859397155,0.55445949,2687.3,2686.6,1.54583736]
[1646859397354,8.1138,2688.1,2687.2,0.99305952]
[1646859397355,0.93091,2687.5,2687.2,0.99305952]
[1646859397556,9.9757222,2688.1,2687.2,1.08194292]
[1646859397557,0.93086,2687.9,2687.2,1.08194292]
[1646859397755,0.18816002,2688.0,2687.2,1.08194292]
[1646859397958,0.68271076,2688.0,2687.3,0.07776333]
[1646859398454,0.93077,2687.9,2687.3,0.07776333]
[1646859398711,0.93491434,2687.8,2687.3,0.07776333]
[1646859398914,0.93491434,2687.8,2686.8,0.08357161]
[1646859399112,0.93491434,2687.8,2686.8,0.08261161]
[1646859399113,0.04561416,2687.7,2686.8,0.08261161]
[1646859399312,1.23491434,2687.8,2686.8,0.08261161]
[1646859399712,0.93102,2687.5,2687.2,1.09647848]
[1646859399914,0.0039207,2687.4,2687.2,1.09647848]
[1646859400113,0.0039207,2687.4,2686.8,0.08261161]
[1646859400313,0.0039207,2687.4,2686.5,0.08388253]
[1646859400516,0.0039207,2687.4,2686.7,0.08503387]
[1646859400913,0.3,2687.5,2686.5,0.07658439]
[1646859401119,0.00373587,2687.2,2686.6,2.74431128]
[1646859401415,0.93477587,2687.2,2686.4,2.8692]
[1646859401617,0.04360168,2687.1,2686.3,0.00259742]
[1646859402014,0.04360168,2687.1,2686.1,0.00096]
[1646859402015,0.441,2687.1,2686.0,1.54596827]
[1646859402214,0.9313151,2686.8,2685.9,1.54596827]
[1646859402460,0.9313151,2686.8,2686.3,0.00259742]
[1646859402461,0.05088968,2686.7,2686.3,0.00259742]
[1646859402661,0.93131,2686.8,2686.3,0.00259742]
[1646859402862,1.86265,2687.0,2686.3,0.09015861]
[1646859403260,1.86265,2687.0,2686.3,0.08756119]
[1646859403663,0.93114,2686.9,2686.3,0.09015861]
[1646859404065,0.93114,2686.9,2686.5,0.07979982]
[1646859404266,0.93114,2686.9,2686.3,0.08234114]
[1646859404463,0.93114,2686.9,2686.3,0.07974372]
[1646859404663,0.93114,2686.9,2686.4,1.54578353]
[1646859404865,0.93114,2686.9,2686.5,0.07487422]
[1646859405266,0.93114,2686.9,2686.3,0.00268182]
[1646859405670,0.93114,2686.9,2686.4,0.08706064]
[1646859405864,0.93114,2686.9,2686.1,4.45815826]
[1646859405865,0.93114,2686.9,2686.5,1.54580191]
[1646859406105,0.93114,2686.9,2686.2,0.07435548]
[1646859406106,3.72492,2686.9,2686.4,0.07483223]
[1646859406304,3.76887905,2686.9,2686.3,0.00268182]
[1646859406906,3.76887905,2686.9,2686.2,1.54583334]
[1646859407105,3.76887905,2686.9,2686.3,0.00268182]
[1646859408104,3.76887905,2686.9,2686.2,1.54585229]
[1646859408308,3.76887905,2686.9,2686.3,0.00266945]
[1646859409109,1.90633905,2686.9,2686.3,0.00266945]
[1646859409309,1.90633905,2686.9,2686.2,1.54585229]
[1646859409510,1.90633905,2686.9,2686.3,0.00266945]
[1646859409977,1.90633905,2686.9,2686.3,0.08549164]
[1646859410170,1.90633905,2686.9,2686.4,1.54585229]
[1646859410469,0.97509905,2686.9,2686.4,1.54585229]
[1646859411569,1.90630905,2686.9,2686.4,1.54585229]
[1646859412770,3.76877905,2686.9,2686.4,1.54585229]
[1646859412971,3.72482,2686.9,2686.4,1.54585229]
[1646859417558,0.93114,2686.9,2686.4,1.54585229]
[1646859417759,0.93114,2686.9,2686.3,0.00267099]
[1646859417760,0.93114,2686.9,2686.5,0.07458333]
[1646859418058,0.93114,2686.9,2686.6,1.54585229]
[1646859418663,0.93114,2686.9,2686.7,0.07566849]
[1646859418869,0.93114,2686.9,2686.8,1.54585229]
[1646859419266,1.23112,2687.0,2686.9,0.71767705]
[1646859419565,1.23112,2687.0,2686.9,2.26352934]
[1646859419971,3.09341,2687.0,2686.9,2.26352934]
[1646859420769,2.79341,2687.0,2686.9,2.26352934]
[1646859420969,0.55109001,2687.2,2686.9,2.26352934]
[1646859421206,0.55109001,2687.2,2687.0,1.54585229]
[1646859421207,0.54751535,2687.2,2687.0,1.54585229]
[1646859421703,0.55109001,2687.2,2687.0,1.54585229]
[1646859421907,0.55109001,2687.2,2687.1,1.15944649]
[1646859422106,0.55109001,2687.2,2687.1,2.70529878]
[1646859422503,0.54751535,2687.2,2687.1,2.70529878]
[1646859422708,3.04372,2687.9,2687.1,6.20529878]
[1646859422906,3.04372,2687.9,2687.2,1.61582411]
[1646859422907,0.00357473,2687.3,2687.2,1.61582411]
[1646859423808,1.86172,2687.9,2687.2,1.61582411]
[1646859424012,0.0035747,2687.4,2687.3,1.54585229]
[1646859424857,0.93077,2687.7,2687.3,1.54585229]
[1646859425058,0.93077,2687.7,2687.4,0.08912965]
[1646859425259,0.00357465,2687.5,2687.4,0.08912965]
[1646859425460,0.00357465,2687.5,2687.0,0.08925657]
[1646859425861,0.00357465,2687.5,2687.1,1.54564046]
[1646859426060,4.02367,2687.6,2687.1,1.54564046]
[1646859426263,5.02367,2687.6,2687.1,1.54564046]
[1646859426462,0.00357467,2687.4,2687.1,1.54564046]
[1646859426667,0.93456467,2687.4,2687.1,1.54564046]
[1646859427264,0.93099,2687.4,2687.1,1.54564046]
[1646859427668,0.93456467,2687.4,2687.1,1.54564046]
[1646859427866,0.9312,2687.2,2686.9,0.71767705]
[1646859428065,2.79361,2687.2,2687.0,1.54583311]
[1646859428265,0.04414505,2687.1,2687.0,1.54583311]
[1646859428712,0.04414505,2687.1,2686.9,0.71767705]
[1646859429911,0.97533505,2687.1,2686.9,0.71767705]
[1646859430111,1.27533505,2687.1,2686.9,0.71767705]
[1646859430311,1.27533505,2687.1,2687.0,1.54585132]
[1646859430712,1.23119,2687.1,2687.0,1.54585132]
[1646859430911,0.93119,2687.1,2687.0,1.54585132]
[1646859431311,1.4841959,2687.2,2687.0,1.54585132]
[1646859431312,1.48777064,2687.2,2687.0,1.54585132]
[1646859432111,1.4841959,2687.2,2687.0,1.54585132]
[1646859432354,1.48777063,2687.2,2687.0,1.54585132]
[1646859432857,0.55657063,2687.2,2687.0,1.54585132]
[1646859433056,0.55657063,2687.2,2687.0,1.61786924]
[1646859433256,0.55657063,2687.2,2687.1,1.54585132]
[1646859433455,0.5529959,2687.2,2687.1,1.54585132]
[1646859433660,0.55657063,2687.2,2687.1,1.52985132]
[1646859434464,0.5529959,2687.2,2687.1,1.51975535]
[1646859435060,0.55472133,2687.2,2687.1,1.51975535]
[1646859438616,0.55472133,2687.2,2686.9,0.71767705]
[1646859438820,0.93121,2687.1,2686.9,0.71767705]
[1646859440457,0.05261323,2687.0,2686.9,0.71767705]
[1646859446136,5.32505,2687.1,2686.9,0.71767705]
[1646859448064,5.32505,2687.1,2686.3,0.0026406]
[1646859448065,0.93122,2686.8,2686.3,0.0026406]
[1646859448267,0.93122,2686.8,2685.9,0.73654981]
[1646859448268,6.8724677,2686.7,2686.0,0.011667]
[1646859448460,6.8724677,2686.7,2685.9,0.05113788]
[1646859448461,8.7355177,2686.7,2685.9,0.05017788]
[1646859448661,0.3,2686.6,2685.9,0.05017788]
[1646859448860,0.3,2686.6,2685.9,0.03961397]
[1646859449066,0.3,2686.6,2685.7,0.68733193]
[1646859449261,0.441,2686.5,2685.7,0.68637193]
[1646859449462,0.93149,2686.2,2685.7,0.68637193]
[1646859449664,0.3,2686.2,2685.8,4.18637193]
[1646859449866,0.3,2686.2,2685.8,4.26782195]
[1646859450064,1.745201,2686.3,2685.9,0.07557136]
[1646859450269,1.445201,2686.3,2685.9,0.07557136]
[1646859450465,0.93149,2686.2,2685.9,0.07557136]
[1646859450865,1.23149,2686.2,2685.9,0.94794329]
[1646859451123,0.93149,2686.2,2685.9,0.07557136]
[1646859451311,0.93149,2686.2,2685.9,0.26157136]
[1646859451510,0.93149,2686.2,2685.9,0.07557136]
[1646859451711,0.93149,2686.2,2685.9,4.2651507]
[1646859451913,0.545485,2686.3,2686.1,0.68637193]
[1646859452112,0.93125,2686.5,2686.2,0.07970141]
[1646859452713,1.47756748,2686.5,2686.2,0.08290852]
[1646859453513,2.40888748,2686.5,2686.2,0.08290852]
[1646859453716,2.40888748,2686.5,2686.2,0.07970141]
[1646859453717,1.86278,2686.4,2686.2,0.07970141]
[1646859454217,1.86278,2686.4,2686.2,0.00320711]
[1646859454860,1.86278,2686.4,2686.1,1.54600689]
[1646859455262,1.86278,2686.4,2686.2,0.00320711]
[1646859456063,1.86278,2686.4,2686.1,1.54600689]
[1646859456563,1.86278,2686.4,2686.2,1.54901356]
[1646859456766,1.86278,2686.4,2686.3,1.54600689]
[1646859456965,1.86278,2686.4,2686.2,0.00300667]
[1646859457366,1.86278,2686.4,2686.1,1.54600689]
[1646859457565,1.86278,2686.4,2686.2,1.54901356]
[1646859457767,1.86278,2686.4,2686.3,1.54600689]
[1646859458166,1.86278,2686.4,2686.2,0.00300667]
[1646859458619,1.86278,2686.4,2686.1,1.54600689]
[1646859458814,1.86278,2686.4,2686.2,1.54901356]
[1646859459015,1.86278,2686.4,2686.3,1.54600689]
[1646859459213,2.16278,2686.4,2686.2,0.00300667]
[1646859459614,2.46433729,2686.5,2686.2,0.00300667]
[1646859459814,0.54804588,2686.5,2686.1,1.62244952]
[1646859460013,0.54804588,2686.5,2686.2,1.62227615]
[1646859460213,0.54804588,2686.5,2686.4,0.95901375]
[1646859460414,0.54804588,2686.5,2686.4,2.50502064]
[1646859460718,0.54804588,2686.5,2686.4,1.54600689]
[1646859460915,1.47926588,2686.5,2686.3,1.54600689]
[1646859461119,1.47926588,2686.5,2686.4,1.54600689]
[1646859461518,1.47926588,2686.5,2686.3,1.54600689]
[1646859461919,2.41055588,2686.5,2686.3,1.54600689]
[1646859463964,2.36055588,2686.5,2686.3,1.54600689]
[1646859464567,2.66055588,2686.5,2686.3,1.54600689]
[1646859464765,2.66055588,2686.5,2686.4,1.54600689]
[1646859464766,3.66055588,2686.5,2686.4,1.54600689]
[1646859465166,3.66055588,2686.5,2686.2,0.00266883]
[1646859465767,3.66055588,2686.5,2686.0,1.54600689]
[1646859465971,3.66055588,2686.5,2686.2,0.00266883]
[1646859466211,3.36055588,2686.5,2686.2,0.00266883]
[1646859466610,2.36055588,2686.5,2686.2,0.00266883]
[1646859466809,3.36055588,2686.5,2686.2,0.00266883]
[1646859467009,3.36055588,2686.5,2685.9,1.54600689]
[1646859467010,2.36055588,2686.5,2685.9,1.54600689]
[1646859467210,3.36055588,2686.5,2686.2,0.0026652]
[1646859467409,2.36055588,2686.5,2686.2,0.0026652]
[1646859467609,3.36055588,2686.5,2686.2,0.0026652]
[1646859467810,2.36055588,2686.5,2686.2,0.0026652]
[1646859468011,3.36055588,2686.5,2686.2,0.0026652]
[1646859468313,2.36055588,2686.5,2685.9,1.54600689]
[1646859468514,3.36055588,2686.5,2686.2,0.0026652]
[1646859468714,2.36055588,2686.5,2686.2,0.0026652]
[1646859468914,3.36055588,2686.5,2686.2,0.0026652]
[1646859469314,3.36055588,2686.5,2686.2,1.54600689]
[1646859469715,3.36055588,2686.5,2686.2,1.54867209]
[1646859470165,2.66055588,2686.5,2686.2,1.54867209]
[1646859470366,3.66055588,2686.5,2686.2,1.54867209]
[1646859470567,2.66055588,2686.5,2686.2,1.54600689]
[1646859470767,3.66055588,2686.5,2686.2,1.54600689]
[1646859470968,2.66055588,2686.5,2686.2,1.54867262]
[1646859471172,3.36055588,2686.5,2686.2,1.54867262]
[1646859471368,2.36055588,2686.5,2686.2,1.54867262]
[1646859471568,3.36055588,2686.5,2686.2,1.54867262]
[1646859471769,2.36055588,2686.5,2686.2,1.54600689]
[1646859471970,3.36055588,2686.5,2686.2,1.54600689]
[1646859472169,3.36055588,2686.5,2686.2,1.54867262]
[1646859472870,2.36055588,2686.5,2686.2,1.54867262]
[1646859473071,3.36055588,2686.5,2686.2,1.54600689]
[1646859473271,2.36055588,2686.5,2686.2,1.54867262]
[1646859473471,3.36055588,2686.5,2686.2,1.54867262]
[1646859473720,2.36055588,2686.5,2686.2,1.54867262]
[1646859473917,3.36055588,2686.5,2686.2,1.54867262]
[1646859474116,3.36055588,2686.5,2686.2,1.54600689]
[1646859474317,3.66055588,2686.5,2686.2,1.54600689]
[1646859474516,3.66055588,2686.5,2686.2,1.54867255]
[1646859475121,3.36055588,2686.5,2686.2,1.54867255]
[1646859475319,2.36055588,2686.5,2686.2,1.54600689]
[1646859475519,3.36055588,2686.5,2686.2,1.54600689]
[1646859475720,2.36055588,2686.5,2686.2,1.54867255]
[1646859475920,3.36055588,2686.5,2686.2,1.54867255]
[1646859476122,2.36055588,2686.5,2686.2,1.54867255]
[1646859476324,3.66055588,2686.5,2686.2,1.54867255]
[1646859476521,2.66055588,2686.5,2686.2,1.54600689]
[1646859476723,0.54631748,2686.5,2686.3,3.511793]
[1646859476926,0.04589103,2686.7,2686.5,1.09263496]
[1646859477123,0.00383477,2687.0,2686.6,1.54600689]
[1646859477360,0.00383477,2687.0,2686.6,1.55771289]
[1646859477561,0.00383477,2687.0,2686.7,1.54600689]
[1646859477765,1.8623,2687.1,2686.7,1.63149148]
[1646859477964,1.8623,2687.1,2686.8,1.54600689]
[1646859478166,0.00383528,2687.0,2686.8,1.54600689]
[1646859478364,0.93489528,2687.0,2686.8,1.54600689]
[1646859478565,0.93489528,2687.0,2686.7,0.09720659]
[1646859478765,0.93489528,2687.0,2686.8,0.01186]
[1646859478971,3.7244543,2687.4,2686.8,0.01186]
[1646859478972,1.86216,2687.4,2686.8,0.01186]
[1646859479168,0.93098,2687.5,2686.9,0.011864]
[1646859479468,0.00383534,2687.0,2686.9,0.011864]
[1646859479666,0.00383534,2687.0,2686.9,3.879964]
[1646859479867,0.00383534,2687.0,2686.9,0.379964]
[1646859480066,0.00383534,2687.0,2686.9,3.879964]
[1646859480268,0.93078,2687.8,2687.6,1.16341426]
[1646859480867,0.93078,2687.8,2687.5,0.011667]
[1646859481314,0.05149774,2687.7,2687.2,0.012064]
[1646859481715,0.05149774,2687.7,2687.3,0.011667]
[1646859482516,1.91382774,2687.7,2687.3,0.011667]
[1646859482716,0.04173715,2687.6,2687.3,0.011667]
[1646859482922,0.04557229,2687.6,2687.3,0.011667]
[1646859483419,2.83909229,2687.6,2687.3,0.011667]
[1646859483916,2.83525715,2687.6,2687.3,0.011667]
[1646859484120,2.8390923,2687.6,2687.3,0.011667]
[1646859484719,4.1390923,2687.6,2687.3,0.011667]
[1646859484965,2.7930593,2687.5,2687.3,0.011667]
[1646859485269,0.3,2687.4,2687.3,0.011667]
[1646859485467,3.72466,2687.3,2687.0,0.011667]
[1646859485672,3.72466,2687.3,2686.5,1.09263496]
[1646859485673,1.8623564,2687.2,2686.9,0.011832]
[1646859485870,1.8623564,2687.2,2686.5,1.09263496]
[1646859485871,2.1623564,2687.2,2686.8,0.012024]
[1646859486071,3.0935564,2687.2,2686.8,0.012024]
[1646859486275,0.04920972,2687.1,2686.5,1.10430196]
[1646859486473,0.441,2687.1,2686.5,1.09263496]
[1646859486677,0.04677164,2687.0,2686.5,1.09263496]
[1646859486872,0.441,2686.9,2686.5,1.09263496]
[1646859487072,1.37242,2686.9,2686.5,1.10433496]
[1646859487273,0.98379932,2686.8,2686.6,0.01182]
[1646859487672,0.93129,2686.8,2686.6,0.01182]
[1646859490322,1.8625284,2686.8,2686.6,0.01182]
[1646859490722,0.3,2686.7,2686.5,1.10433496]
[1646859490926,0.3,2686.7,2686.5,1.09263496]
[1646859490927,3.8,2686.7,2686.5,1.09263496]
[1646859491122,1.91438282,2686.6,2686.5,1.09263496]
[1646859493769,2.47528806,2686.6,2686.5,1.09263496]
[1646859496819,1.3,2686.7,2686.5,1.09263496]
[1646859497019,0.3,2686.7,2686.5,1.09263496]
[1646859497621,0.3,2686.8,2686.5,1.09263496]
[1646859497821,0.3,2686.8,2686.5,1.10437296]
[1646859498021,0.3,2686.8,2686.6,0.011856]
[1646859498319,0.3,2686.8,2686.7,0.011858]
[1646859498519,1.86614511,2687.0,2686.7,0.011858]
[1646859498722,1.86614511,2687.0,2686.8,1.5459409]
[1646859499220,1.86614511,2687.0,2686.7,0.011858]
[1646859499221,3.72858791,2687.0,2686.7,0.011858]
[1646859499421,3.7247528,2687.0,2686.8,1.54594179]
[1646859499621,3.72858812,2687.0,2686.8,1.54594179]
[1646859499869,0.3,2686.9,2686.8,1.54594179]
[1646859500471,0.3,2686.9,2686.7,0.011858]
[1646859503075,0.93135,2686.8,2686.6,0.011856]
[1646859503275,0.00098263,2686.6,2686.5,1.74829825]
[1646859503476,0.00098263,2686.6,2686.5,3.28261721]
[1646859504116,1.86361263,2686.6,2686.5,2.63869192]
[1646859504318,2.79491563,2686.6,2686.5,2.63869192]
[1646859504716,3.79491563,2686.6,2686.5,2.63869192]
[1646859504918,2.79491563,2686.6,2686.5,2.63869192]
[1646859505122,3.79491563,2686.6,2686.5,2.63869192]
[1646859507964,3.84867965,2686.6,2686.5,2.63869192]
[1646859508364,3.84867965,2686.6,2686.5,2.63728028]
[1646859508966,3.79491563,2686.6,2686.5,2.63728028]
[1646859511213,2.79491563,2686.6,2686.5,2.63728028]
[1646859511416,0.00098263,2686.6,2686.5,2.64899728]
[1646859512212,0.00098263,2686.6,2686.5,3.01709728]
[1646859513115,0.00098263,2686.6,2686.5,2.64899728]
[1646859514716,0.93217263,2686.6,2686.5,2.64899728]
[1646859514966,0.00098263,2686.6,2686.5,2.64899728]
[1646859515168,0.00098263,2686.6,2686.5,3.01709728]
[1646859515569,0.00098263,2686.6,2686.5,14.25709728]
[1646859516167,8.263e-05,2686.6,2686.5,17.94346921]
[1646859516369,8.263e-05,2686.6,2686.5,19.91826448]
[1646859516567,8.263e-05,2686.6,2686.5,19.15955525]
[1646859516767,1e-08,2687.0,2686.7,11.6081]
[1646859516965,1e-08,2687.0,2686.9,14.623165]
[1646859517166,1e-08,2687.0,2686.9,17.70202196]
[1646859517366,1e-08,2687.0,2686.9,19.62520291]
[1646859517566,0.005834,2688.1,2687.8,0.93619823]
[1646859517767,0.2424188,2688.8,2687.9,1.54605696]
[1646859517968,3.5,2689.0,2687.8,0.93619823]
[1646859518171,0.9305528,2688.7,2687.8,0.93619823]
[1646859518366,0.93056,2688.5,2688.1,0.012031]
[1646859518651,2.79193,2688.5,2687.9,0.011882]
[1646859518842,3.39193,2688.5,2687.7,0.012037]
[1646859519042,0.00303917,2688.4,2687.9,0.011685]
[1646859519642,1.86442917,2688.4,2687.9,0.011685]
[1646859519843,1.86139,2688.4,2687.9,0.011685]
[1646859520043,0.00303917,2688.3,2687.9,0.011685]
[1646859521044,2.23056,2688.5,2687.9,0.011685]
[1646859521343,0.00400859,2688.2,2688.0,0.011803]
[1646859522363,1.23056,2688.5,2688.0,0.011803]
[1646859522364,2.1611763,2688.5,2688.0,0.011803]
[1646859522566,0.00303802,2688.2,2687.9,0.011685]
[1646859522764,0.00303802,2688.2,2687.5,0.011667]
[1646859522765,0.93089,2688.1,2687.5,0.011667]
[1646859522965,0.93089,2688.1,2687.4,0.011667]
[1646859522966,3.5,2688.0,2687.4,0.011667]
[1646859523163,1.28000941,2688.1,2687.4,0.011667]
[1646859523368,1.52091941,2688.1,2687.4,0.011667]
[1646859523669,1.8618,2687.9,2687.4,0.011667]
[1646859523869,0.93088,2687.7,2687.4,0.011667]
[1646859524069,1.23088,2687.7,2687.4,0.011667]
[1646859524267,1.23088,2687.7,2687.3,0.012072]
[1646859524869,1.86192,2687.6,2687.3,0.012072]
[1646859525067,2.79583271,2687.6,2687.3,0.012072]
[1646859525270,0.00299271,2687.6,2687.3,0.011757]
[1646859525877,1.23088,2687.7,2687.3,0.011757]
[1646859526127,0.00396525,2687.6,2687.3,0.011757]
[1646859527116,0.05266983,2687.6,2687.2,0.011667]
[1646859527514,1.91857039,2687.6,2687.2,0.011667]
[1646859527915,2.84948619,2687.6,2687.2,0.011667]
[1646859528216,2.21605725,2687.5,2687.2,0.011667]
[1646859528615,2.22006783,2687.5,2687.2,0.011667]
[1646859529420,2.21605725,2687.5,2687.2,0.011667]
[1646859529621,0.93093,2687.4,2687.2,0.011667]
[1646859529868,0.93093,2687.4,2686.6,0.04822925]
[1646859530067,0.93093,2687.4,2686.7,1.54550516]
[1646859531075,0.0039498,2687.2,2686.7,1.54550516]
[1646859531870,0.05365676,2687.5,2686.7,1.54550516]
[1646859532072,0.00394977,2687.1,2686.7,1.54550516]
[1646859532272,0.05365676,2687.5,2687.2,0.00789954]
[1646859532472,0.93092,2687.4,2687.2,0.00789954]
[1646859533729,1.23092,2687.4,2687.2,0.00789954]
[1646859534125,0.93092,2687.4,2687.2,0.00789954]
[1646859534626,0.93476042,2687.4,2687.2,0.00789954]
[1646859535425,1.97812073,2687.7,2687.3,1.5454282]
[1646859535629,0.97812073,2687.7,2687.3,1.5454282]
[1646859535827,0.00384042,2687.4,2687.3,1.5454282]
[1646859536630,0.93084,2687.7,2687.3,1.5454282]
[1646859536928,0.00384041,2687.5,2687.3,1.5454282]
[1646859537367,0.93097,2687.4,2687.2,0.00789954]
[1646859537868,0.98147892,2687.4,2687.2,0.00789954]
[1646859538266,0.98532646,2687.4,2687.2,0.00789954]
[1646859538468,0.05657954,2687.3,2687.2,0.00789954]
[1646859539481,1.23481756,2687.4,2687.2,1.55331869]
[1646859539669,1.23481756,2687.4,2687.2,0.00789954]
[1646859539670,0.30384756,2687.4,2687.2,0.00789954]
[1646859540072,0.00384756,2687.4,2687.2,0.00789954]
[1646859540270,1.86196,2687.6,2687.3,1.54534213]
[1646859540476,0.04999562,2688.2,2687.3,1.54534213]
[1646859540672,1.079496,2688.4,2687.3,12.78534213]
[1646859540871,4.754e-05,2687.4,2687.3,12.0491]
[1646859541134,4.754e-05,2687.4,2687.3,16.59419139]
[1646859541326,4.754e-05,2687.4,2687.3,1.98609139]
[1646859541539,0.5528726,2688.8,2687.9,1.09951214]
[1646859542127,0.0528726,2688.8,2687.9,1.09951214]
[1646859542428,0.93065,2688.3,2687.9,1.09951214]
[1646859543028,0.93065,2688.3,2688.0,1.54503091]
[1646859543229,0.93065,2688.3,2687.9,1.09951214]
[1646859543630,0.93065,2688.3,2687.5,11.24]
[1646859543830,0.93065,2688.3,2687.6,1.54508336]
[1646859544232,0.00303333,2688.2,2687.7,1.54508336]
[1646859544531,0.00303333,2688.2,2687.8,1.54508336]
[1646859544730,0.00303333,2688.2,2687.8,0.97714781]
[1646859544973,0.93065,2688.3,2687.8,0.97714781]
[1646859545373,0.00401036,2688.1,2687.8,0.97714781]
[1646859546374,1.2119726,2688.8,2687.9,5.04497545]
[1646859546578,1.68307118,2689.5,2687.9,4.4252]
[1646859546579,0.00401038,2688.1,2687.9,4.4252]
[1646859546775,0.00401038,2688.1,2688.0,1.54492735]
[1646859546974,0.00401038,2688.1,2688.0,16.28492735]
[1646859547374,0.00401038,2688.1,2688.0,16.67351235]
[1646859547573,0.0160391,2688.5,2688.0,16.67351235]
[1646859547574,0.13819997,2689.1,2688.0,16.67351235]
[1646859547776,0.00401034,2688.2,2688.0,15.128585]
[1646859547973,0.00401034,2688.2,2688.1,14.74]
[1646859548633,1.18006373,2689.2,2688.1,15.1081]
[1646859548634,1.1274,2689.2,2688.1,15.1081]
[1646859548830,1.1274,2689.2,2688.5,0.012048]
[1646859549134,0.01603881,2688.7,2688.5,0.930948]
[1646859549930,0.04918599,2689.2,2688.5,0.930948]
[1646859550130,0.00401014,2688.7,2688.3,0.011667]
[1646859550529,0.00401014,2688.7,2688.1,1.1952]
[1646859550731,0.00401014,2688.7,2688.3,0.011692]
[1646859550931,0.93054,2688.6,2688.0,0.020485]
[1646859551131,0.93054,2688.6,2688.2,0.011667]
[1646859551330,0.00401021,2688.5,2688.2,0.011667]
[1646859552030,0.00401021,2688.5,2688.4,0.011867]
[1646859552228,0.98355483,2689.0,2688.5,0.00107453]
[1646859552468,0.98355483,2689.0,2688.6,0.011771]
[1646859552670,0.06470623,2688.9,2688.5,0.00107453]
[1646859553071,0.01603851,2688.9,2688.5,0.00107453]
[1646859553372,0.05089646,2688.7,2688.5,0.00107453]
[1646859554876,0.00391217,2688.7,2688.5,0.00107453]
[1646859555976,0.93055,2688.9,2688.5,0.00107453]
[1646859556221,0.00391217,2688.7,2688.5,0.00107453]
[1646859557124,1.1437,2689.2,2688.6,0.011774]
[1646859557322,0.00303214,2688.7,2688.6,0.011774]
[1646859557922,0.00303214,2688.7,2688.5,0.00107453]
[1646859558321,0.06048486,2689.1,2688.5,0.00107453]
[1646859558322,1.86098,2689.0,2688.5,0.00107453]
[1646859558522,0.00303214,2688.8,2688.5,0.00107453]
[1646859559429,0.93041,2688.9,2688.5,0.00107453]
[1646859559624,0.00303214,2688.8,2688.5,0.00107453]
[1646859559867,0.00303214,2688.8,2688.6,0.011755]
[1646859560666,0.93041,2688.9,2688.6,0.011755]
[1646859560876,0.00401176,2688.8,2688.6,0.011755]